[Event "13th Poti Nana Aleksandria Cup"]
[Site "Poti"]
[Date "2018.07.13"]
[Round "1"]
[White "Sindarov, Javokhir"]
[Black "Eynullayev, Altay"]
[Result "1/2-1/2"]
[ECO "C00"]
[WhiteElo "2474"]
[BlackElo "2134"]
[Annotator "ChessBase"]
[PlyCount "113"]
[EventDate "2018.07.13"]
[EventType "swiss"]
[EventCountry "GEO"]
[SourceTitle "playchess.com"]
[Source "ChessBase"]
[SourceQuality "1"]
[TimeControl "40/5400+30:1800+30"]

1. e4 {[%emt 0:00:00]} e6 {[%emt 0:00:00]} 2. Qe2 {[%emt 0:12:24]} c5 {[%emt 0:00:00]} 3. Nf3 {[%emt 0:00:05]} Nc6 {[%emt 0:00:00]} 4. g3 {[%emt 0:00:02]} g6 {[%emt 0:00:00]} 5. Bg2 {[%emt 0:00:04]} Bg7 {[%emt 0:00:01]} 6. d3 {[%emt 0:00:07]} Nge7 {[%emt 0:00:06]} 7. c3 {[%emt 0:00:04]} d6 {[%emt 0:00:08]} 8. Na3 {[%emt 0:01:36]} b6 {[%emt 0:00:08]} 9. Nc2 {[%emt 0:01:02]} Ba6 {[%emt 0:00:14]} 10. O-O {[%emt 0:00:38]} O-O {[%emt 0:00:06]} 11. h4 {[%emt 0:00:08]} h6 {[%emt 0:01:36]} 12. Rd1 {[%emt 0:04:00]} Qd7 {[%emt 0:02:29]} 13. Qe1 {[%emt 0:09:24]} Rac8 {[%emt 0:11:36]} 14. Ne3 {[%emt 0:10:43]} Kh7 {[%emt 0:09:44]} 15. d4 {[%emt 0:04:28]} cxd4 {[%emt 0:04:27]} 16. cxd4 {[%emt 0:00:05]} d5 {[%emt 0:04:10]} 17. e5 {[%emt 0:01:43]} Nf5 {[%emt 0:04:58]} 18. Ng4 {[%emt 0:07:51]} Qe7 {[%emt 0:11:14]} 19. b3 {[%emt 0:01:29]} Qb4 {[%emt 0:08:13]} 20. Bd2 {[%emt 0:09:00]} Qb5 {[%emt 0:05:35]} 21. Bc3 {[%emt 0:15:06]} Qe2 {[%emt 0:02:20]} 22. Nf6+ {[%emt 0:07:04]} Bxf6 {[%emt 0:06:16]} 23. exf6 {[%emt 0:00:12]} Qxe1+ {[%emt 0:02:45]} 24. Rxe1 {[%emt 0:00:08]} Nd6 {[%emt 0:02:58]} 25. Bb2 {[%emt 0:07:53]} Ne4 {[%emt 0:03:59]} 26. Ba3 {[%emt 0:00:03]} Rfe8 {[%emt 0:06:30]} 27. Ne5 {[%emt 0:00:04]} Nxe5 {[%emt 0:04:08]} 28. dxe5 {[%emt 0:00:04]} Nc5 {[%emt 0:00:04]} 29. Rad1 {[%emt 0:00:45]} Red8 {[%emt 0:00:35]} 30. h5 {[%emt 0:01:11]} g5 {[%emt 0:01:43]} 31. Rd4 {[%emt 0:00:09]} Nd3 {[%emt 0:00:51]} 32. Re3 {[%emt 0:00:07]} Nc1 {[%emt 0:00:47]} 33. Rd2 {[%emt 0:00:09]} Rc6 {[%emt 0:02:28]} 34. Bf1 {[%emt 0:00:28]} Bxf1 {[%emt 0:00:44]} 35. Kxf1 {[%emt 0:00:03]} Rdc8 {[%emt 0:00:21]} 36. Re1 {[%emt 0:01:49]} a5 {[%emt 0:01:11]} 37. f4 {[%emt 0:00:41]} b5 {[%emt 0:00:33]} 38. fxg5 {[%emt 0:01:41]} hxg5 {[%emt 0:00:07]} 39. g4 {[%emt 0:03:07]} b4 {[%emt 0:00:34]} 40. Bxc1 {[%emt 0:00:00]} Rxc1 {[%emt 0:00:00]} 41. Rxc1 Rxc1+ {[%emt 0:00:07]} 42. Ke2 {[%emt 0:06:03]} Rg1 {[%emt 0:08:45]} 43. Kf3 {[%emt 0:01:34]} Rf1+ {[%emt 0:00:33]} 44. Rf2 {[%emt 0:00:10]} Rc1 {[%emt 0:01:56]} 45. Re2 {[%emt 0:03:59]} Rf1+ {[%emt 0:00:15]} 46. Kg2 {[%emt 0:01:35]} Rc1 {[%emt 0:01:08]} 47. Kf2 {[%emt 0:00:27]} Rc3 {[%emt 0:01:08]} 48. Rd2 {[%emt 0:02:01]} Kh8 {[%emt 0:01:04]} 49. Kf1 {[%emt 0:01:24]} Rc1+ {[%emt 0:01:04]} 50. Ke2 {[%emt 0:00:23]} Rg1 {[%emt 0:00:00]} 51. Kf3 {[%emt 0:00:31]} Rc1 {[%emt 0:00:44]} 52. Ke3 {[%emt 0:02:51]} Rg1 {[%emt 0:02:40]} 53. Kf3 {[%emt 0:01:11]} Rc1 {[%emt 0:00:42]} 54. Kf2 {[%emt 0:00:12]} Rc3 {[%emt 0:00:24]} 55. Kf1 {[%emt 0:00:15]} Rc1+ {[%emt 0:00:10]} 56. Ke2 {[%emt 0:01:24]} Rg1 {[%emt 0:00:30]} 57. Kf3 {[%emt 0:00:08]} 1/2-1/2

[Event "13th Poti Nana Aleksandria Cup"]
[Site "Poti"]
[Date "2018.07.13"]
[Round "1"]
[White "Harutjunyan, Gevorg"]
[Black "Mustafayev, Farid"]
[Result "1-0"]
[ECO "D79"]
[WhiteElo "2418"]
[BlackElo "2068"]
[Annotator "NA RC"]
[PlyCount "69"]
[EventDate "2018.07.13"]
[EventType "swiss"]
[EventCountry "GEO"]
[SourceTitle "playchess.com"]
[Source "ChessBase"]
[SourceQuality "1"]
[TimeControl "40/5400+30:1800+30"]

1. Nf3 {[%emt 0:00:00]} Nf6 {[%emt 0:00:00]} 2. g3 {[%emt 0:00:00]} d5 {[%emt 0:00:07]} 3. Bg2 {[%emt 0:00:00]} g6 {[%emt 0:00:50]} 4. O-O {[%emt 0:00:45]} Bg7 {[%emt 0:00:03]} 5. d4 {[%emt 0:00:18]} O-O {[%emt 0:00:21]} 6. c4 {[%emt 0:00:06]} c6 {[%emt 0:00:22]} 7. cxd5 {[%emt 0:02:12]} cxd5 {[%emt 0:00:14]} 8. Nc3 {[%emt 0:00:08]} Nc6 {[%emt 0:02:26]} 9. Ne5 {[%emt 0:00:09]} e6 {[%emt 0:00:06]} 10. f4 {[%emt 0:00:11]} Bd7 {[%emt 0:02:18]} 11. Be3 {[%emt 0:00:10]} Rc8 {[%emt 0:03:20]} 12. Rc1 {[%emt 0:02:54]} Qe7 {[%emt 0:04:00]} 13. Bf2 {[%emt 0:04:07]} Rfd8 {[%emt 0:07:22]} 14. h3 {[%emt 0:04:07]} h5 {[%emt 0:07:13]} 15. e3 {[%emt 0:07:56]} Be8 {[%emt 0:01:38]} 16. g4 {[%emt 0:02:26]} hxg4 {[%emt 0:01:15]} 17. hxg4 {[%emt 0:00:07]} Nxe5 {[%emt 0:00:13]} 18. dxe5 {[%emt 0:00:47]} Nd7 {[%emt 0:00:08]} 19. Qe2 {[%emt 0:06:24]} Nc5 {[%emt 0:08:07]} 20. Nb5 {[%emt 0:06:38]} Bxb5 {[%emt 0:03:23]} 21. Qxb5 {[%emt 0:00:18]} a6 {[%emt 0:01:11]} 22. Qb4 {[%emt 0:00:45]} Bf8 {[%emt 0:09:38]} 23. Qd4 {[%emt 0:01:23]} b5 {[%emt 0:02:00]} 24. b3 {[%emt 0:08:44]} a5 {[%emt 0:03:16]} 25. Bg3 {[%emt 0:02:34]} Qb7 {[%emt 0:12:47]} 26. Bh4 {[%emt 0:05:28]} Be7 {[%emt 0:04:35]} 27. Bf6 {[%emt 0:19:13]} Bxf6 {[%emt 0:03:09]} 28. exf6 {[%emt 0:00:04]} Nd7 {[%emt 0:00:55]} 29. Rxc8 {[%emt 0:04:42]} Rxc8 {[%emt 0:01:58]} 30. f5 {[%emt 0:00:13]} Qb6 {[%emt 0:02:48]} 31. fxe6 {[%emt 0:01:11]} Qxe6 {[%emt 0:04:36]} 32. Bxd5 {[%emt 0:00:13]} Qe8 {[%emt 0:00:46]} 33. Rd1 {[%emt 0:07:37]} Ne5 {[%emt 0:01:46]} 34. Qf4 {[%emt 0:00:31]} Rd8 {[%emt 0:01:38]} 35. Kg2 {[%emt 0:01:26]} 1-0

[Event "13th Poti Nana Aleksandria Cup"]
[Site "Poti"]
[Date "2018.07.13"]
[Round "1"]
[White "Mgeladze, Tamaz"]
[Black "Mnatsakanian, Arsen"]
[Result "1-0"]
[ECO "A38"]
[WhiteElo "2374"]
[BlackElo "2047"]
[Annotator "NA"]
[PlyCount "119"]
[EventDate "2018.07.13"]
[EventType "swiss"]
[EventCountry "GEO"]
[SourceTitle "playchess.com"]
[Source "ChessBase"]
[SourceQuality "1"]
[TimeControl "40/5400+30:1800+30"]

1. c4 {[%emt 0:01:33]} Nf6 {[%emt 0:00:45]} 2. g3 {[%emt 0:00:16]} c5 {[%emt 0:02:48]} 3. Nc3 {[%emt 0:00:14]} g6 {[%emt 0:00:05]} 4. Bg2 {[%emt 0:00:15]} Bg7 {[%emt 0:00:06]} 5. Nf3 {[%emt 0:00:08]} Nc6 {[%emt 0:00:08]} 6. O-O {[%emt 0:00:07]} O-O {[%emt 0:00:43]} 7. d3 {[%emt 0:00:18]} d5 {[%emt 0:04:41]} 8. cxd5 {[%emt 0:03:35]} Nxd5 {[%emt 0:00:07]} 9. Nxd5 {[%emt 0:00:13]} Qxd5 {[%emt 0:00:06]} 10. Be3 {[%emt 0:00:04]} Qd6 {[%emt 0:21:19]} 11. Rc1 {[%emt 0:03:13]} Nd4 {[%emt 0:01:23]} 12. Nxd4 {[%emt 0:00:15]} cxd4 {[%emt 0:03:30]} 13. Bf4 {[%emt 0:00:06]} e5 {[%emt 0:01:10]} 14. Bd2 {[%emt 0:00:10]} a5 {[%emt 0:10:44]} 15. Qc2 {[%emt 0:05:46]} Qb6 {[%emt 0:03:26]} 16. Qc5 {[%emt 0:00:51]} Qxc5 17. Rxc5 {[%emt 0:00:06]} Bg4 {[%emt 0:01:04]} 18. Bf3 {[%emt 0:03:34]} Be6 {[%emt 0:12:11]} 19. Bxb7 {[%emt 0:10:52]} Rab8 {[%emt 0:00:08]} 20. Rc7 {[%emt 0:00:14]} Bf6 {[%emt 0:00:43]} 21. Bf3 {[%emt 0:09:03]} Rxb2 {[%emt 0:00:06]} 22. Bxa5 {[%emt 0:00:03]} Rxa2 {[%emt 0:00:44]} 23. Bb4 {[%emt 0:00:30]} Rb8 {[%emt 0:00:12]} 24. Bd6 {[%emt 0:00:43]} Rd8 {[%emt 0:08:23]} 25. Rc6 {[%emt 0:02:59]} Rda8 {[%emt 0:02:59]} 26. Kg2 {[%emt 0:03:57]} R8a6 {[%emt 0:02:20]} 27. Rfc1 {[%emt 0:02:12]} Rxc6 {[%emt 0:00:06]} 28. Rxc6 {[%emt 0:00:10]} Ra5 {[%emt 0:00:19]} 29. Rb6 {[%emt 0:03:40]} h5 {[%emt 0:03:08]} 30. h3 {[%emt 0:01:50]} Kh7 {[%emt 0:03:13]} 31. Be4 {[%emt 0:04:19]} Ra2 {[%emt 0:01:53]} 32. Bf3 {[%emt 0:03:29]} e4 {[%emt 0:02:26]} 33. Bxe4 {[%emt 0:01:37]} Rxe2 {[%emt 0:00:05]} 34. Rb4 {[%emt 0:01:16]} Bg5 {[%emt 0:02:13]} 35. Bf4 {[%emt 0:01:30]} Bf6 {[%emt 0:00:03]} 36. Bc1 {[%emt 0:00:38]} Re1 {[%emt 0:02:39]} 37. Bf4 {[%emt 0:01:00]} Kg7 {[%emt 0:00:06]} 38. Bc7 {[%emt 0:00:42]} Ba2 {[%emt 0:01:30]} 39. Rb2 {[%emt 0:01:21]} Bb1 {[%emt 0:03:12]} 40. Bf4 {[%emt 0:01:01]} Rxe4 {[%emt 0:01:11]} 41. dxe4 {[%emt 0:31:53]} Bxe4+ {[%emt 0:30:04]} 42. f3 {[%emt 0:00:00]} Bd5 {[%emt 0:00:00]} 43. h4 {[%emt 0:00:00]} d3 {[%emt 0:00:00]} 44. Rb5 {[%emt 0:00:00]} Be6 {[%emt 0:00:00]} 45. Kf2 {[%emt 0:00:00]} Bd4+ {[%emt 0:00:00]} 46. Ke1 {[%emt 0:00:00]} Bc3+ {[%emt 0:00:00]} 47. Bd2 {[%emt 0:00:00]} Bd4 {[%emt 0:00:00]} 48. Ra5 {[%emt 0:00:00]} Kf8 {[%emt 0:00:00]} 49. Bb4+ {[%emt 0:00:00]} Ke8 {[%emt 0:00:00]} 50. Ra3 {[%emt 0:00:00]} Bf5 {[%emt 0:00:00]} 51. Bc3 {[%emt 0:01:06]} Bc5 {[%emt 0:00:00]} 52. Ra4 {[%emt 0:02:18]} Ke7 {[%emt 0:00:00]} 53. Bb4 {[%emt 0:01:38]} Bxb4+ {[%emt 0:00:00]} 54. Rxb4 {[%emt 0:00:04]} f6 {[%emt 0:00:00]} 55. Kd2 {[%emt 0:04:33]} g5 {[%emt 0:00:00]} 56. Ke3 {[%emt 0:04:54]} Bg6 {[%emt 0:00:42]} 57. Rb7+ {[%emt 0:00:58]} Kf8 {[%emt 0:00:04]} 58. hxg5 {[%emt 0:00:27]} fxg5 {[%emt 0:00:13]} 59. Rb5 {[%emt 0:00:05]} Kg7 {[%emt 0:00:32]} 60. Rxg5 {[%emt 0:00:10]} 1-0

[Event "13th Poti Nana Aleksandria Cup"]
[Site "Poti"]
[Date "2018.07.13"]
[Round "1"]
[White "Sattarov, Bobir"]
[Black "Gordon, Evgeny"]
[Result "1-0"]
[ECO "C41"]
[WhiteElo "2328"]
[BlackElo "2016"]
[Annotator "NA"]
[PlyCount "55"]
[EventDate "2018.07.13"]
[EventType "swiss"]
[EventCountry "GEO"]
[SourceTitle "playchess.com"]
[Source "ChessBase"]
[SourceQuality "1"]
[TimeControl "40/5400+30:1800+30"]

1. e4 {[%emt 0:00:00]} d6 {[%emt 0:00:00]} 2. d4 {[%emt 0:00:00]} Nf6 {[%emt 0:00:00]} 3. Nc3 {[%emt 0:00:00]} e5 {[%emt 0:00:23]} 4. Nf3 {[%emt 0:00:24]} Nbd7 {[%emt 0:00:05]} 5. Bc4 {[%emt 0:00:28]} Be7 {[%emt 0:00:08]} 6. O-O {[%emt 0:00:09]} O-O {[%emt 0:00:05]} 7. a4 {[%emt 0:00:24]} c6 {[%emt 0:01:10]} 8. Ba2 {[%emt 0:00:08]} h6 {[%emt 0:01:03]} 9. Qe2 {[%emt 0:02:57]} a5 {[%emt 0:09:20]} 10. Rd1 {[%emt 0:00:46]} Qc7 {[%emt 0:02:11]} 11. h3 {[%emt 0:04:09]} Nh7 {[%emt 0:22:50]} 12. Be3 {[%emt 0:01:13]} Bf6 {[%emt 0:05:15]} 13. Rd2 {[%emt 0:00:48]} exd4 {[%emt 0:22:09]} 14. Nxd4 {[%emt 0:03:10]} Nc5 {[%emt 0:01:34]} 15. Rad1 {[%emt 0:15:45]} Re8 {[%emt 0:21:58]} 16. f3 {[%emt 0:04:56]} Nf8 {[%emt 0:03:05]} 17. Qf2 {[%emt 0:03:43]} Be5 {[%emt 0:03:17]} 18. f4 {[%emt 0:01:53]} Bf6 {[%emt 0:01:21]} 19. e5 {[%emt 0:00:08]} dxe5 {[%emt 0:01:14]} 20. Ndb5 {[%emt 0:00:02]} cxb5 {[%emt 0:00:45]} 21. Nxb5 {[%emt 0:00:02]} Ne4 {[%emt 0:01:58]} 22. Nxc7 {[%emt 0:00:51]} Nxf2 {[%emt 0:00:02]} 23. Bxf2 {[%emt 0:00:24]} Be6 {[%emt 0:00:33]} 24. Bxe6 {[%emt 0:00:16]} Nxe6 {[%emt 0:00:06]} 25. Nxa8 {[%emt 0:00:08]} Rxa8 {[%emt 0:00:09]} 26. fxe5 Bxe5 {[%emt 0:00:08]} 27. c3 {[%emt 0:00:21]} Rb8 {[%emt 0:00:39]} 28. Bb6 {[%emt 0:01:32]} 1-0

[Event "13th Poti Nana Aleksandria Cup"]
[Site "Poti"]
[Date "2018.07.13"]
[Round "1"]
[White "Danielyan, Vahe"]
[Black "Shanya Mishra"]
[Result "0-1"]
[ECO "B40"]
[WhiteElo "2317"]
[BlackElo "1980"]
[Annotator "NA"]
[PlyCount "84"]
[EventDate "2018.07.13"]
[EventType "swiss"]
[EventCountry "GEO"]
[SourceTitle "playchess.com"]
[Source "ChessBase"]
[SourceQuality "1"]
[TimeControl "40/5400+30:1800+30"]

1. e4 {[%emt 0:00:00]} c5 {[%emt 0:00:00]} 2. Nf3 {[%emt 0:00:00]} e6 {[%emt 0:00:34]} 3. Nc3 {[%emt 0:00:00]} Nc6 {[%emt 0:00:22]} 4. Bb5 {[%emt 0:00:06]} Nd4 {[%emt 0:01:02]} 5. O-O {[%emt 0:00:43]} g6 {[%emt 0:01:11]} 6. Nxd4 {[%emt 0:02:21]} cxd4 {[%emt 0:01:16]} 7. Ne2 {[%emt 0:00:13]} Bg7 {[%emt 0:00:11]} 8. c3 {[%emt 0:00:05]} dxc3 {[%emt 0:02:54]} 9. dxc3 {[%emt 0:00:34]} a6 {[%emt 0:02:48]} 10. Ba4 {[%emt 0:02:00]} Ne7 {[%emt 0:00:29]} 11. Qd6 {[%emt 0:01:15]} O-O {[%emt 0:04:35]} 12. Rd1 {[%emt 0:00:14]} b5 {[%emt 0:00:13]} 13. Bb3 {[%emt 0:00:25]} Nc6 {[%emt 0:03:21]} 14. Be3 {[%emt 0:00:41]} Qh4 {[%emt 0:02:02]} 15. Ng3 Ne5 16. f3 f5 17. Bf2 Qg5 18. h4 Qh6 19. a4 f4 20. Ne2 bxa4 21. Rxa4 g5 22. Ra5 Nf7 23. hxg5 Nxg5 24. Bc4 Nf7 25. Qc7 Kh8 26. Rda1 d6 27. b4 Ne5 28. Bxa6 Rg8 29. Nd4 Bxa6 30. Rxa6 Rxa6 31. Rxa6 Bf8 32. Ra2 Qh3 33. Be1 Nd3 34. Qc4 Nxe1 35. Qf1 e5 36. Qxe1 exd4 37. Qf2 dxc3 38. b5 Qe6 39. b6 Bg7 40. b7 Qb3 41. Qa7 Be5 42. Kh2 c2 0-1

[Event "13th Poti Nana Aleksandria Cup"]
[Site "Poti"]
[Date "2018.07.13"]
[Round "1"]
[White "Danielyan, Vahe"]
[Black "Shanya Mishra"]
[Result "*"]
[ECO "B20"]
[WhiteElo "2317"]
[BlackElo "1980"]
[Annotator "NA"]
[PlyCount "32"]
[EventDate "2018.07.13"]
[EventType "swiss"]
[EventCountry "GEO"]
[SourceTitle "playchess.com"]
[Source "ChessBase"]
[SourceQuality "1"]
[TimeControl "40/5400+30:1800+30"]

{[%evp 14,27,-233,-452,-468,32767,32767,32767,32767,-1270,-1322,-2734,-3168,-29992,-29993,-29993]} 1. e4 c5 2. d3 Nc6 3. Nc3 g6 4. Qf3 Bg7 5. Be3 Nd4 6. Bxd4 cxd4 7. Nd5 e6 8. Nb4 $2 (8. Nf4 {was forced.}) 8... a5 9. c3 axb4 10. cxd4 Bxd4 11. Nh3 Bxb2 12. Rb1 Bc3+ 13. Ke2 Rxa2+ 14. Kd1 Rd2+ 15. Kc1 Qa5 16. d4 Qa3+ *

[Event "13th Poti Nana Aleksandria Cup"]
[Site "Poti"]
[Date "2018.07.13"]
[Round "1"]
[White "Gharagyozyan, Artur"]
[Black "Tihonov, Gennady"]
[Result "1-0"]
[ECO "C47"]
[WhiteElo "2302"]
[BlackElo "1845"]
[Annotator "NA"]
[PlyCount "67"]
[EventDate "2018.07.13"]
[EventType "swiss"]
[EventCountry "GEO"]
[SourceTitle "playchess.com"]
[Source "ChessBase"]
[SourceQuality "1"]
[TimeControl "40/5400+30:1800+30"]

1. e4 {[%emt 0:00:00]} e5 {[%emt 0:00:00]} 2. Nf3 {[%emt 0:00:00]} Nf6 {[%emt 0:00:00]} 3. Nc3 {[%emt 0:00:00]} Nc6 {[%emt 0:00:04]} 4. Bc4 {[%emt 0:00:19]} Nxe4 {[%emt 0:00:18]} 5. Nxe4 {[%emt 0:00:08]} d5 {[%emt 0:00:04]} 6. Bd3 {[%emt 0:00:04]} dxe4 {[%emt 0:00:09]} 7. Bxe4 {[%emt 0:00:03]} Bg4 {[%emt 0:07:09]} 8. h3 {[%emt 0:00:20]} Bxf3 {[%emt 0:01:15]} 9. Qxf3 {[%emt 0:00:22]} Qf6 {[%emt 0:10:12]} 10. Qxf6 {[%emt 0:00:40]} gxf6 {[%emt 0:00:05]} 11. Bxc6+ {[%emt 0:00:09]} bxc6 {[%emt 0:00:05]} 12. d3 {[%emt 0:00:31]} Bc5 {[%emt 0:00:54]} 13. Be3 {[%emt 0:00:08]} Bb6 {[%emt 0:05:09]} 14. Ke2 {[%emt 0:03:09]} Rb8 {[%emt 0:01:31]} 15. b3 {[%emt 0:00:08]} Ke7 {[%emt 0:00:53]} 16. a4 {[%emt 0:00:06]} Rhd8 {[%emt 0:03:40]} 17. g4 {[%emt 0:00:13]} f5 {[%emt 0:07:46]} 18. gxf5 {[%emt 0:00:04]} Kf6 $16 {[%emt 0:01:04]} 19. Rag1 {[%emt 0:00:02]} Rg8 {[%emt 0:00:49]} 20. Rg4 {[%emt 0:00:03]} Kxf5 {[%emt 0:06:55]} 21. Rhg1 {[%emt 0:00:13]} Rg6 {[%emt 0:01:47]} 22. Rg5+ {[%emt 0:01:02]} Kf6 {[%emt 0:02:05]} 23. R1g4 {[%emt 0:01:14]} Rbg8 {[%emt 0:04:28]} 24. Rxg6+ Rxg6 {[%emt 0:00:19]} 25. Rc4 {[%emt 0:00:58]} Ke7 {[%emt 0:00:48]} 26. b4 {[%emt 0:00:42]} f5 {[%emt 0:13:35]} 27. Rh4 {[%emt 0:02:04]} Rg7 {[%emt 0:02:19]} 28. Rh6 {[%emt 0:01:46]} Kd7 {[%emt 0:00:56]} 29. Rf6 {[%emt 0:00:19]} f4 {[%emt 0:01:39]} 30. Bxb6 {[%emt 0:01:01]} cxb6 {[%emt 0:00:51]} 31. Kf3 {[%emt 0:00:09]} a5 {[%emt 0:02:17]} 32. b5 {[%emt 0:00:17]} cxb5 {[%emt 0:00:18]} 33. Rxb6 {[%emt 0:00:07]} bxa4 {[%emt 0:01:50]} 34. Rb7+ {[%emt 0:00:05]} 1-0

[Event "13th Poti Nana Aleksandria Cup"]
[Site "Poti"]
[Date "2018.07.13"]
[Round "1"]
[White "Der Manuelian, Haik"]
[Black "Bibilashvili, Lali"]
[Result "1-0"]
[ECO "B33"]
[WhiteElo "2242"]
[BlackElo "1816"]
[Annotator "NA"]
[PlyCount "83"]
[EventDate "2018.07.13"]
[EventType "swiss"]
[EventCountry "GEO"]
[SourceTitle "playchess.com"]
[Source "ChessBase"]
[SourceQuality "1"]
[TimeControl "40/5400+30:1800+30"]

1. e4 {[%emt 0:00:00]} c5 {[%emt 0:00:53]} 2. Nf3 {[%emt 0:00:00]} Nc6 {[%emt 0:00:03]} 3. d4 {[%emt 0:00:00]} cxd4 {[%emt 0:00:03]} 4. Nxd4 {[%emt 0:00:00]} Nf6 {[%emt 0:01:27]} 5. Nc3 {[%emt 0:00:00]} e5 {[%emt 0:02:12]} 6. Ndb5 {[%emt 0:00:22]} d6 {[%emt 0:00:06]} 7. Bg5 {[%emt 0:00:07]} a6 {[%emt 0:00:24]} 8. Na3 {[%emt 0:00:08]} b5 {[%emt 0:00:03]} 9. Nd5 {[%emt 0:00:04]} Be7 {[%emt 0:00:03]} 10. Bxf6 {[%emt 0:00:12]} Bxf6 {[%emt 0:00:04]} 11. c3 {[%emt 0:00:07]} Bg5 {[%emt 0:00:02]} 12. Nc2 {[%emt 0:00:33]} O-O {[%emt 0:00:44]} 13. a4 {[%emt 0:00:26]} bxa4 {[%emt 0:00:09]} 14. Rxa4 {[%emt 0:00:05]} a5 {[%emt 0:00:03]} 15. Bc4 {[%emt 0:00:29]} Rb8 {[%emt 0:04:26]} 16. b3 {[%emt 0:00:03]} Kh8 {[%emt 0:01:32]} 17. h4 {[%emt 0:01:50]} Bh6 {[%emt 0:06:04]} 18. g4 {[%emt 0:01:08]} Bf4 {[%emt 0:00:07]} 19. Nce3 {[%emt 0:06:40]} Bxe3 {[%emt 0:16:38]} 20. Nxe3 {[%emt 0:00:05]} Be6 {[%emt 0:00:13]} 21. Nf5 {[%emt 0:07:21]} Bxf5 {[%emt 0:07:35]} 22. gxf5 {[%emt 0:00:42]} Qf6 {[%emt 0:01:47]} 23. Qd2 {[%emt 0:16:34]} h6 {[%emt 0:03:40]} 24. Qg5 {[%emt 0:08:27]} Qd8 {[%emt 0:07:33]} 25. Qxd8 {[%emt 0:00:14]} Rbxd8 {[%emt 0:00:06]} 26. Bd5 {[%emt 0:10:09]} Rc8 {[%emt 0:01:10]} 27. Rh3 {[%emt 0:04:16]} Rc7 {[%emt 0:06:22]} 28. Bxc6 {[%emt 0:01:24]} Rxc6 {[%emt 0:00:02]} 29. Rxa5 {[%emt 0:00:02]} Rb8 {[%emt 0:00:04]} 30. Ra3 {[%emt 0:04:11]} Rcb6 {[%emt 0:03:43]} 31. b4 {[%emt 0:01:30]} Kg8 {[%emt 0:05:48]} 32. Rd3 {[%emt 0:03:14]} Kf8 {[%emt 0:01:14]} 33. Ra7 {[%emt 0:00:08]} Rc8 {[%emt 0:07:58]} 34. Kd2 {[%emt 0:01:53]} Rc4 {[%emt 0:09:40]} 35. f3 {[%emt 0:00:01]} Ke8 {[%emt 0:01:10]} 36. Rd5 {[%emt 0:02:08]} Rc8 {[%emt 0:00:40]} 37. b5 {[%emt 0:01:02]} Rd8 {[%emt 0:05:09]} 38. c4 {[%emt 0:01:17]} Rd7 {[%emt 0:07:51]} 39. Ra6 {[%emt 0:00:13]} Rxa6 {[%emt 0:00:20]} 40. bxa6 {[%emt 0:00:00]} Ke7 {[%emt 0:00:00]} 41. c5 {[%emt 0:01:26]} Ra7 {[%emt 0:01:26]} 42. Rxd6 {[%emt 0:00:51]} 1-0

[Event "13th Poti Nana Aleksandria Cup"]
[Site "Poti"]
[Date "2018.07.13"]
[Round "1"]
[White "Ghvamberia, Nika"]
[Black "Pantsulaia, Levan"]
[Result "1/2-1/2"]
[ECO "B28"]
[WhiteElo "2236"]
[BlackElo "2575"]
[Annotator "ChessBase"]
[PlyCount "113"]
[EventDate "2018.07.13"]
[EventType "swiss"]
[EventCountry "GEO"]
[SourceTitle "playchess.com"]
[Source "ChessBase"]
[SourceQuality "1"]
[TimeControl "40/5400+30:1800+30"]

1. e4 {[%emt 0:00:00]} c5 {[%emt 0:00:00]} 2. Nf3 {[%emt 0:00:00]} a6 {[%emt 0:00:22]} 3. c3 {[%emt 0:00:49]} d6 {[%emt 0:03:12]} 4. d4 {[%emt 0:01:33]} Qc7 {[%emt 0:00:07]} 5. Bd3 {[%emt 0:03:10]} g6 {[%emt 0:00:09]} 6. Bf4 {[%emt 0:03:22]} Bg7 {[%emt 0:05:03]} 7. dxc5 {[%emt 0:01:21]} Qxc5 {[%emt 0:00:16]} 8. Nbd2 {[%emt 0:00:11]} Nf6 {[%emt 0:01:44]} 9. O-O {[%emt 0:01:08]} O-O {[%emt 0:00:14]} 10. h3 {[%emt 0:06:34]} Nbd7 {[%emt 0:05:26]} 11. Re1 {[%emt 0:04:17]} e5 {[%emt 0:01:04]} 12. Bg5 {[%emt 0:05:04]} h6 {[%emt 0:01:46]} 13. Be3 {[%emt 0:02:24]} Qc6 {[%emt 0:03:28]} 14. a4 {[%emt 0:20:28]} Nc5 {[%emt 0:19:18]} 15. Bxc5 {[%emt 0:07:01]} Qxc5 {[%emt 0:00:06]} 16. Qb3 {[%emt 0:01:02]} Nh5 {[%emt 0:30:06]} 17. Nc4 {[%emt 0:10:34]} Nf4 {[%emt 0:01:50]} 18. Bf1 {[%emt 0:00:05]} Be6 {[%emt 0:00:06]} 19. Qb6 {[%emt 0:01:22]} Qxb6 {[%emt 0:00:06]} 20. Nxb6 {[%emt 0:00:04]} Rad8 {[%emt 0:00:05]} 21. Rad1 {[%emt 0:13:03]} f5 {[%emt 0:01:00]} 22. exf5 {[%emt 0:00:20]} gxf5 {[%emt 0:03:01]} 23. g3 {[%emt 0:04:28]} Ng6 {[%emt 0:00:08]} 24. Bc4 {[%emt 0:03:30]} Bf7 {[%emt 0:09:16]} 25. Re2 {[%emt 0:04:59]} e4 {[%emt 0:05:03]} 26. Bxf7+ {[%emt 0:00:10]} Kxf7 {[%emt 0:02:22]} 27. Nd4 {[%emt 0:00:09]} Bxd4 {[%emt 0:01:21]} 28. cxd4 {[%emt 0:02:01]} Ke6 {[%emt 0:03:56]} 29. Rc1 {[%emt 0:03:32]} Rf7 {[%emt 0:00:27]} 30. f4 {[%emt 0:01:09]} d5 {[%emt 0:01:07]} 31. Rec2 {[%emt 0:00:23]} h5 {[%emt 0:01:18]} 32. h4 {[%emt 0:00:05]} Ne7 {[%emt 0:00:09]} 33. a5 {[%emt 0:01:08]} Rd6 {[%emt 0:01:58]} 34. Nc8 {[%emt 0:00:38]} Nc6 {[%emt 0:00:47]} 35. Nxd6 {[%emt 0:00:33]} Kxd6 {[%emt 0:00:01]} 36. Rxc6+ bxc6 {[%emt 0:00:01]} 37. b4 {[%emt 0:00:31]} e3 {[%emt 0:01:02]} 38. Rc3 {[%emt 0:00:47]} Re7 {[%emt 0:00:12]} 39. Kf1 {[%emt 0:00:19]} Re4 {[%emt 0:00:22]} 40. Rd3 {[%emt 0:00:00]} e2+ {[%emt 0:00:00]} 41. Ke1 {[%emt 0:00:12]} Kd7 {[%emt 0:02:55]} 42. Rd2 {[%emt 0:00:43]} Re3 {[%emt 0:05:36]} 43. Rxe2 {[%emt 0:00:06]} Rxg3 {[%emt 0:00:04]} 44. Re5 {[%emt 0:00:19]} Rd3 {[%emt 0:00:23]} 45. Rxf5 {[%emt 0:00:09]} Rxd4 {[%emt 0:00:05]} 46. Rxh5 {[%emt 0:02:40]} Rxb4 {[%emt 0:01:04]} 47. Rf5 {[%emt 0:09:02]} Ke6 {[%emt 0:03:45]} 48. Rf8 {[%emt 0:01:59]} Ke7 {[%emt 0:00:18]} 49. Rc8 {[%emt 0:02:14]} Kd6 {[%emt 0:00:09]} 50. Rf8 {[%emt 0:00:09]} Ra4 {[%emt 0:02:32]} 51. h5 {[%emt 0:03:43]} Rxa5 {[%emt 0:00:26]} 52. h6 {[%emt 0:02:02]} Ra1+ {[%emt 0:00:04]} 53. Kd2 {[%emt 0:00:19]} Rh1 {[%emt 0:00:08]} 54. Rh8 {[%emt 0:00:34]} Ke7 {[%emt 0:04:03]} 55. h7 {[%emt 0:00:45]} Kf6 {[%emt 0:00:25]} 56. Rc8 {[%emt 0:00:40]} Rxh7 {[%emt 0:00:07]} 57. Rxc6+ {[%emt 0:00:05]} 1/2-1/2